{"text_format":"1","workbook":"xlsx","n_sheets":6,"sheets":["Tabelle6","Tabelle1","Tabelle3","Tabelle2","Tabelle4","Tabelle5"],"not_rendered":{"charts":0,"images":73,"macros":1,"external_links":0,"defined_names":2,"comments":0,"pivot_tables":0},"unopened":[],"bounds":{"document_bytes":16777216,"sheet_cells":100000,"rows_first":2000,"rows_last":500,"rows_between":2000,"halvings":0,"cell_chars":16384,"cell_head_chars":4096},"cells_cut":0,"cells_raw":0,"read":"whole","date_system":"1900"}

{"sheet":"Tabelle6","index":0,"n_rows":11,"n_cols":13,"rows_kept":11,"cut":false,"hidden":true,"merged":[[6,4,6,8],[71,0,71,2],[72,0,72,2],[151,0,151,2],[152,0,152,2],[153,0,153,2],[154,0,154,2],[59,0,59,2],[60,0,60,2],[61,0,61,2],[62,0,62,2],[63,0,63,2],[65,0,65,2],[66,0,66,2],[67,0,67,2],[68,0,68,2],[69,0,69,2],[70,0,70,2],[64,0,64,2],[54,0,54,2],[55,0,55,2],[56,0,56,2],[57,0,57,2],[58,0,58,2],[77,0,77,2],[78,0,78,2],[79,0,79,2],[80,0,80,2],[81,0,81,2],[82,0,82,2],[73,0,73,2],[74,0,74,2],[75,0,75,2],[76,0,76,2],[89,0,89,2],[90,0,90,2],[91,0,91,2],[92,0,92,2],[93,0,93,2],[94,0,94,2],[83,0,83,2],[84,0,84,2],[85,0,85,2],[86,0,86,2],[87,0,87,2],[88,0,88,2],[101,0,101,2],[102,0,102,2],[103,0,103,2],[104,0,104,2],[105,0,105,2],[106,0,106,2],[95,0,95,2],[96,0,96,2],[97,0,97,2],[98,0,98,2],[99,0,99,2],[100,0,100,2],[113,0,113,2],[114,0,114,2],[115,0,115,2],[116,0,116,2],[117,0,117,2],[118,0,118,2],[107,0,107,2],[108,0,108,2],[109,0,109,2],[110,0,110,2],[111,0,111,2],[112,0,112,2],[128,0,128,2],[129,0,129,2],[130,0,130,2],[119,0,119,2],[120,0,120,2],[121,0,121,2],[122,0,122,2],[123,0,123,2],[124,0,124,2],[7,3,7,9],[149,0,149,2],[150,0,150,2],[143,0,143,2],[144,0,144,2],[145,0,145,2],[146,0,146,2],[147,0,147,2],[148,0,148,2],[137,0,137,2],[138,0,138,2],[139,0,139,2],[140,0,140,2],[141,0,141,2],[142,0,142,2],[131,0,131,2],[132,0,132,2],[133,0,133,2],[134,0,134,2],[135,0,135,2],[136,0,136,2],[125,0,125,2],[126,0,126,2],[127,0,127,2]]}
["-","-"]
["-","-",null,null,null,null,null,null,null,null,null,null,{"$f":"Tabelle5!N5","v":"Deutsch"}]
["-","-"]
[{"$f":"IF(M2=\"English\",\"Item\",\"Artikel\")","v":"Artikel"},{"$f":"IF(M2=\"English\",\"QTY\",\"Menge\")","v":"Menge"},null,null,null,null,null,null,null,null,null,null,{"$f":"Tabelle2!K11","v":50}]
[null,null,null,null,null,null,null,null,null,null,null,null,{"$f":"COUNTIF(A5:A154,\"<>\")","v":0}]
[null,null,null,null,null,null,null,null,null,null,null,null,{"$f":"M4-M5","v":50}]
[null,null,null,null,null,null,null,null,null,null,null,null,"Bitte löschen Sie die letzten Eingaben bis die maximale Anzahl von\n50 Bestellpositionen nicht überschritten wird!"]
[null,null,null,{"$f":"IF(M2=\"Deutsch\",\"Sie können noch \"&M6&\" Positionen Ihrer Bestellung hinzufügen\",IF(M2=\"English\",\"You can add \"&M6&\" more positions to your order\"))","v":"Sie können noch 50 Positionen Ihrer Bestellung hinzufügen"},null,null,null,null,null,null,null,null,"The maximum order lines have been exceeded "]
[null,null,null,null,null,null,null,null,null,null,null,null,"Please cancel the lines which exceed 50 entries"]
[null,null,null,null,null,null,null,null,null,null,null,null,{"$f":"Tabelle2!K11","v":50}]
[null,null,null,null,null,null,null,null,null,null,null,null,{"$f":"COUNTIF(B5:B54,\"<>\")/2","v":0}]

{"sheet":"Tabelle1","index":1,"n_rows":35,"n_cols":46,"rows_kept":35,"cut":false,"hidden":true,"merged":[[10,0,10,2],[11,0,11,1],[2,36,2,37],[2,38,2,39],[2,8,2,32]]}
["-",null,"-",null,null,null,null,null,null,null,null,null,null,null,null,null,null,null,null,null,null,null,null,null,null,null,null,null,null,null,null,null,null,null,null,{"$f":"TODAY()","v":"2021-10-26"}]
["-",null,"-"]
[{"$f":"IF(AO7=\"Sprache auswählen / Choose Language\",\"Zylinder Typ\",IF(AO7=\"Deutsch\",\"Zylinder Typ\",IF(AO7=\"English\",\"Type of Cylinder\")))","v":"Zylinder Typ"},null,{"$f":"IF(AO7=\"Sprache auswählen / Choose Language\",\"Aussen Seite\",IF(AO7=\"Deutsch\",\"Aussen Seite\",IF(AO7=\"English\",\"Outside Dimension\")))","v":"Aussen Seite"},null,{"$f":"IF(AO7=\"Sprache auswählen / Choose Language\",\"Innen \nSeite\",IF(AO7=\"Deutsch\",\"Innen \nSeite\",IF(AO7=\"English\",\"Inside Dimension\")))","v":"Innen \nSeite"},null,null,null,null,null,null,null,null,null,null,null,null,null,null,null,null,null,null,null,null,null,null,null,null,null,null,null,null,{"$f":"IF(AO7=\"Sprache auswählen / Choose Language\",\"Menge\",IF(AO7=\"Deutsch\",\"Menge\",IF(AO7=\"English\",\"Quantity\")))","v":"Menge"},{"$f":"IF(AO7=\"Sprache auswählen / Choose Language\",\"Bestellen\",IF(AO7=\"Deutsch\",\"Bestellen\",IF(AO7=\"English\",\"Order\")))","v":"Bestellen"},null,"FD/CO/AP2/DM/MP/MH",null,"HZ",null,"Sprache auswählen / Choose Language",null,null,null,"Menge",{"$f":"IF(AO7=\"Sprache auswählen / Choose Language\",\"Rücksetzen\",IF(AO7=\"Deutsch\",\"Rücksetzen\",IF(AO7=\"English\",\"Reset\")))","v":"Rücksetzen"}]
["-",null,"-",null,null,null,null,null,null,null,null,null,null,null,null,null,null,null,null,null,null,null,null,null,null,null,null,null,null,null,null,null,null,null,null,null,"Aussen","Innen","Aussen","Innen","Deutsch","FD","AP2","CO",1]
["-",null,"-",null,null,null,null,null,null,null,null,null,null,null,null,null,null,null,null,null,null,null,null,null,null,null,null,null,null,null,null,null,null,null,null,"3061-FD",30,30,30,10,"English","FH","FH","--",2]
["-",null,"-",null,null,null,null,null,null,null,null,null,null,null,null,null,null,null,null,null,null,null,null,null,null,null,null,null,null,null,null,null,null,null,null,"3061-Comfort",35,35,35,null,null,"MR","MR","MR",3]
["-",null,"-",null,null,null,null,null,null,null,null,null,null,null,null,null,null,null,null,null,null,null,null,null,null,null,null,null,null,null,null,null,null,null,null,{"$f":"IF(AO7=\"Sprache auswählen / Choose Language\",\"3061-Antipanik 2\",IF(AO7=\"Deutsch\",\"3061-Antipanik 2\",IF(AO7=\"English\",\"3061-Anti-Panic 2\")))","v":"3061-Antipanik 2"},40,40,40,null,{"$f":"Tabelle5!N5","v":"Deutsch"},"MS","MS","MS",4]
[null,null,null,null,null,null,null,null,null,null,null,null,null,null,null,null,null,null,null,null,null,null,null,null,null,null,null,null,null,null,null,null,null,null,null,{"$f":"IF(AO7=\"Sprache auswählen / Choose Language\",\"3061-Halbzylinder\",IF(AO7=\"Deutsch\",\"3061-Halbzylinder\",IF(AO7=\"English\",\"3061-Half Cylinder\")))","v":"3061-Halbzylinder"},45,45,45,null,null,"--","OK","--",5]
["-",null,"-",null,null,null,null,null,null,null,null,null,null,null,null,null,null,null,null,null,null,null,null,null,null,null,null,null,null,null,null,null,null,null,null,"3061-Door Monitoring FD",50,50,50,null,{"$f":"IF(AO7=\"Deutsch\",\"Bitte Menge eingeben\",IF(AO7=\"English\",\"Please enter quantity\",IF(AO7=\"Sprache auswählen / Choose Language\",\"Bitte Menge eingeben\")))","v":"Bitte Menge eingeben"},"SKG","SKG","--",6]
["-",null,"-",null,null,null,null,null,null,null,null,null,null,null,null,null,null,null,null,null,null,null,null,null,null,null,null,null,null,null,null,null,null,null,null,{"$f":"IF(AO7=\"Sprache auswählen / Choose Language\",\"3061-Door Monitoring Antipanik 2\",IF(AO7=\"Deutsch\",\"3061-Door Monitoring Antipanik 2\",IF(AO7=\"English\",\"3061-Door Monitoring Anti-Panic 2\")))","v":"3061-Door Monitoring Antipanik 2"},55,55,55,null,{"$f":"IF(AO7=\"Deutsch\",\"Sind Sie sicher, alle Zylinder in der Vorschau zur Bestellung zu löschen?\",IF(AO7=\"English\",\"Are you shure to delete all Items in order overview?\",IF(AO7=\"Sprache auswählen / Choose Language\",\"Sind Sie sicher, alle Zylinder in der Vorschau zur Bestellung zu löschen?\")))","v":"Sind Sie sicher, alle Zylinder in der Vorschau zur Bestellung zu löschen?"},"SW","SW","SW",7]
[{"$f":"IF(AO7=\"Sprache auswählen / Choose Language\",\"Artikel-Vorschau für Bestellung\",IF(AO7=\"Deutsch\",\"Artikel-Vorschau für Bestellung\",IF(AO7=\"English\",\"Overview of items for order\")))","v":"Artikel-Vorschau für Bestellung"},null,null,null,null,null,null,null,null,null,null,null,null,null,null,null,null,null,null,null,null,null,null,null,null,null,null,null,null,null,null,null,null,null,null,{"$f":"IF(AO7=\"Sprache auswählen / Choose Language\",\"3061-Door Monitoring Halbzylinder\",IF(AO7=\"Deutsch\",\"3061-Door Monitoring Halbzylinder\",IF(AO7=\"English\",\"3061-Door Monitoring Half Cylinder\")))","v":"3061-Door Monitoring Halbzylinder"},60,60,60,null,null,"TS","TS","--",8]
[{"$f":"IF(AO7=\"Sprache auswählen / Choose Language\",\"Artikel\",IF(AO7=\"Deutsch\",\"Artikel\",IF(AO7=\"English\",\"Item\")))","v":"Artikel"},null,{"$f":"IF(AO7=\"Sprache auswählen / Choose Language\",\"Menge\",IF(AO7=\"Deutsch\",\"Menge\",IF(AO7=\"English\",\"Quantity\")))","v":"Menge"},null,null,null,null,null,null,null,null,null,null,null,null,null,null,null,null,null,null,null,null,null,null,null,null,null,null,null,null,null,null,null,null,"3061-Swiss Round Comfort",65,65,65,null,null,"WP","WP","WP",9]
[null,null,null,null,{"$f":"IF(AO7=\"Sprache auswählen / Choose Language\",\"Sie können noch \" & AJ26 &\" Positionen Ihrer Bestellung hinzufügen\",IF(AO7=\"Deutsch\",\"Sie können noch \" & AJ26 &\" Positionen Ihrer Bestellung hinzufügen\",IF(AO7=\"English\",\"You can add \" & AJ26 &\" more positions to your order\")))","v":"Sie können noch 50 Positionen Ihrer Bestellung hinzufügen"},null,null,null,null,null,null,null,null,null,null,null,null,null,null,null,null,null,null,null,null,null,null,null,null,null,null,null,null,null,null,{"$f":"IF(AO7=\"Sprache auswählen / Choose Language\",\"3061-Swiss Round Halbzylinder\",IF(AO7=\"Deutsch\",\"3061-Swiss Round Halbzylinder\",IF(AO7=\"English\",\"3061-Swiss Round Half Cylinder\")))","v":"3061-Swiss Round Halbzylinder"},70,70,70,null,null,"ZK","ZK","ZK",10]
[null,null,null,null,null,null,null,null,null,null,null,null,null,null,null,null,null,null,null,null,null,null,null,null,null,null,null,null,null,null,null,null,null,null,null,"3061-SC-FD",75,75,75,null,null,"ZK.VDS","ZK.VDS","--",11]
[null,null,null,null,null,null,null,null,null,null,null,null,null,null,null,null,null,null,null,null,null,null,null,null,null,null,null,null,null,null,null,null,null,null,null,"3061-SC Comfort",80,80,80,null,null,null,null,null,12]
[null,null,null,null,null,null,null,null,null,null,null,null,null,null,null,null,null,null,null,null,null,null,null,null,null,null,null,null,null,null,null,null,null,null,null,{"$f":"IF(AO7=\"Sprache auswählen / Choose Language\",\"3061-SC Antipanik 2\",IF(AO7=\"Deutsch\",\"3061-SC Antipanik 2\",IF(AO7=\"English\",\"3061-SC Anti-Panic 2\")))","v":"3061-SC Antipanik 2"},85,85,90,null,null,null,null,null,13]
[null,null,null,null,null,null,null,null,null,null,null,null,null,null,null,null,null,null,null,null,null,null,null,null,null,null,null,null,null,null,null,null,null,null,null,{"$f":"IF(AO7=\"Sprache auswählen / Choose Language\",\"3061-SC Halbzylinder\",IF(AO7=\"Deutsch\",\"3061-SC Halbzylinder\",IF(AO7=\"English\",\"3061-SC Half Cylinder\")))","v":"3061-SC Halbzylinder"},90,90,null,null,null,null,null,null,14]
[null,null,null,null,null,null,null,null,null,null,null,null,null,null,null,null,null,null,null,null,null,null,null,null,null,null,null,null,null,null,null,null,null,null,null,"3061-SC Swiss Round Comfort",95,95,null,null,null,null,null,null,15]
[null,null,null,null,null,null,null,null,null,null,null,null,null,null,null,null,null,null,null,null,null,null,null,null,null,null,null,null,null,null,null,null,null,null,null,{"$f":"IF(AO7=\"Sprache auswählen / Choose Language\",\"3061-SC Swiss Round Halbzylinder\",IF(AO7=\"Deutsch\",\"3061-SC Swiss Round Halbzylinder\",IF(AO7=\"English\",\"3061-SC Swiss Round Half Cylinder\")))","v":"3061-SC Swiss Round Halbzylinder"},100,100,null,null,null,null,null,null,16]
[null,null,null,null,null,null,null,null,null,null,null,null,null,null,null,null,null,null,null,null,null,null,null,null,null,null,null,null,null,null,null,null,null,null,null,{"$f":"IF(AO7=\"Sprache auswählen / Choose Language\",\"3061-Hybrid FD\",IF(AO7=\"Deutsch\",\"3061-Hybrid FD\",IF(AO7=\"English\",\"3061-Hybrid FD\")))","v":"3061-Hybrid FD"},105,105,null,null,null,null,null,null,17]
[null,null,null,null,null,null,null,null,null,null,null,null,null,null,null,null,null,null,null,null,null,null,null,null,null,null,null,null,null,null,null,null,null,null,null,null,110,110,null,null,null,null,null,null,18]
[null,null,null,null,null,null,null,null,null,null,null,null,null,null,null,null,null,null,null,null,null,null,null,null,null,null,null,null,null,null,null,null,null,null,null,null,115,115,null,null,null,null,null,null,19]
[null,null,null,null,null,null,null,null,null,null,null,null,null,null,null,null,null,null,null,null,null,null,null,null,null,null,null,null,null,null,null,null,null,null,null,"Anzahl Zylinder",120,120,null,null,null,null,null,null,20]
[null,null,null,null,null,null,null,null,null,null,null,null,null,null,null,null,null,null,null,null,null,null,null,null,null,null,null,null,null,null,null,null,null,null,null,{"$f":"COUNTIF(A13:A62,\"<>\")","v":0},125,125]
[null,null,null,null,null,null,null,null,null,null,null,null,null,null,null,null,null,null,null,null,null,null,null,null,null,null,null,null,null,null,null,null,null,null,null,{"$f":"Tabelle2!K11","v":50},130,130]
[null,null,null,null,null,null,null,null,null,null,null,null,null,null,null,null,null,null,null,null,null,null,null,null,null,null,null,null,null,null,null,null,null,null,null,{"$f":"AJ25-AJ24","v":50},135,135]
[null,null,null,null,null,null,null,null,null,null,null,null,null,null,null,null,null,null,null,null,null,null,null,null,null,null,null,null,null,null,null,null,null,null,null,null,140,140]
[]
[null,null,null,null,null,null,null,null,null,null,null,null,null,null,null,null,null,null,null,null,null,null,null,null,null,null,null,null,null,null,null,null,null,null,null,"Zylinder zusammenfassung"]
[null,null,null,null,null,null,null,null,null,null,null,null,null,null,null,null,null,null,null,null,null,null,null,null,null,null,null,null,null,null,null,null,null,null,null,"Z4","AA","-","II","Type","Zusatzfunktionen"]
[null,null,null,null,null,null,null,null,null,null,null,null,null,null,null,null,null,null,null,null,null,null,null,null,null,null,null,null,null,null,null,null,null,null,null,"Z4.",null,{"$f":"IF(AK31=\"\",\"\",\"-\")","v":""},{"$f":"IF(E8=\"\",\"\",E8)","v":""},".FD.",{"$f":"IF(Y8=\"\",\"\",\"TS.\")&IF(S8=\"\",\"\",\"SKG.\")&IF(AG8=\"\",\"\",\"ZK.VDS.\")&IF(M8=\"\",\"\",\"MR.\")& IF(Q8=\"\",\"\",\"OK.\")&IF(K8=\"\",\"\",\"FH.\")&IF(I8=\"\",\"\",\"DK.\")&IF(O8=\"\",\"\",\"MS.\")& IF(U8=\"\",\"\",\"SL.\")& IF(AA8=\"\",\"\",\"VR.\")&IF(AC8=\"\",\"\",\"WP.\")& IF(W8=\"\",\"\",\"SW.\")& IF(AE8=\"\",\"\",\"ZK.\")&\"G2\"","v":"G2"}]
[null,null,null,null,null,null,null,null,null,null,null,null,null,null,null,null,null,null,null,null,null,null,null,null,null,null,null,null,null,null,null,null,null,null,null,{"$f":"IF(M8=\"\",\"\",\"MR.\")& IF(I8=\"\",\"\",\"DK.\")&IF(O8=\"\",\"\",\"MS.\")& IF(U8=\"\",\"\",\"SL.\")& IF(AA8=\"\",\"\",\"VR.\")&IF(AC8=\"\",\"\",\"WP.\")& IF(AE8=\"\",\"\",\"ZK.\")&\"G2\"","v":"G2"}]
[]
[null,null,null,null,null,null,null,null,null,null,null,null,null,null,null,null,null,null,null,null,null,null,null,null,null,null,null,null,null,null,null,null,null,null,null,"BL = Drehknauf auf beiden Seiten, beidseitig lesend - Nur für 3061-SC Anti Panik 2 erhältlich\nDK = Demontierbarer Knauf - Nur für Halbzylinder erhältlich\nFH = Feuerhemmende Version, zur Reichweitenrehöhunh - Nicht für Comfortzylinder erhältlich\nMR = Multirast-Ausführung - nur für FD-, DM.FD, CO- und HZ erhältlich\nMS = Messingausführung\nOK = Version ohne Innenknauf - Nur für AP2-Zylinder erhältlich\nSKG = Version für SKG-Zulassung - Nur für FD- und AP2-Zylinder erhältlich\nSL = Version mit Selbstverriegelung - Nur für Halbzylinder erhältlich\nSW = Seewasserfeste Version - Nur in Verbindung mit WP erhältlich\nTS = Version mit Tastersteuerung - Nicht in Verbindung mit WP erhältlich\nVR = Version mit verkürtzer Reichweite - Nur für Halbzylinder erhältlich\nWP = Wetterfeste Version - nicht in Verbindung mit TS erhältlich\nZK = Version mit zutrittskontrolle - Nicht in Verbindung mit SKG erhältlich\nZK.VDS = Version mit VDS-Zulassung und Zutrittskontolle - Nur für FD- und AP2-Zylinder erhältlich"]
[null,null,null,null,null,null,null,null,null,null,null,null,null,null,null,null,null,null,null,null,null,null,null,null,null,null,null,null,null,null,null,null,null,null,null,"BL = Thumb-turn on both sides; reader on both sides - Only available for 3061 SC-Anti Panic 2\nDK = Version with detachable thumb-turn - Only available for falf cylinders\nFH = fire-retardant version for use in steel and fire doors; not available for CO- and Halfcylinders\nMR =  For multi-point version - Only availabel for FD-, DM.FD- CO- and half cylinders\nMS = Brass design\nOK = Version without inside thumb turn - Only available for Anti Panic 2 cylinders\nSKG = Version with SKG approval \nSL = Version with self locking - Only for half cylinders available\nSW = Seawater proof version - Only in combination with WP available\nTS = Button controll version - Not available win combination with WP\nVR = Version with reduced range - Only available for half cylinders\nWP = Weatherproof version - Not available in combination with TS\nZK =Version with accsess controll\nZK.VDS = Version in Vds design - Only available for FD- and Anti Panic 2 cylinders"]

{"sheet":"Tabelle3","index":2,"n_rows":0,"n_cols":0,"rows_kept":0,"cut":false,"hidden":true,"merged":[]}

{"sheet":"Tabelle2","index":3,"n_rows":25,"n_cols":11,"rows_kept":25,"cut":false,"hidden":true,"merged":[[74,2,74,3],[69,2,69,3],[70,2,70,3],[71,2,71,3],[72,2,72,3],[73,2,73,3],[64,2,64,3],[65,2,65,3],[66,2,66,3],[67,2,67,3],[68,2,68,3],[59,2,59,3],[60,2,60,3],[61,2,61,3],[62,2,62,3],[63,2,63,3],[54,2,54,3],[55,2,55,3],[56,2,56,3],[57,2,57,3],[58,2,58,3],[49,2,49,3],[50,2,50,3],[51,2,51,3],[52,2,52,3],[53,2,53,3],[44,2,44,3],[45,2,45,3],[46,2,46,3],[47,2,47,3],[48,2,48,3],[39,2,39,3],[40,2,40,3],[41,2,41,3],[42,2,42,3],[43,2,43,3],[18,1,18,3],[19,1,19,3],[26,2,26,3],[27,2,27,3],[28,2,28,3],[24,2,24,3],[25,2,25,3],[20,1,20,3],[29,2,29,3],[30,2,30,3],[31,2,31,3],[32,2,32,3],[33,2,33,3],[34,2,34,3],[35,2,35,3],[36,2,36,3],[37,2,37,3],[38,2,38,3],[15,1,15,3],[16,1,16,3],[17,1,17,3],[14,1,14,3],[5,1,5,3],[6,1,6,3],[7,1,7,3],[8,1,8,3],[9,1,9,3],[11,1,11,3],[12,1,12,3],[10,1,10,3],[13,1,13,3]]}
["-","-",null,null,null,null,null,null,null,null,{"$f":"Tabelle5!N5","v":"Deutsch"}]
["-","-",null,null,null,null,null,null,null,null,{"$f":"IF(K1=\"English\",\"Back\",IF(K1=\"Deutsch\",\"Zurück\",IF(K1=\"Sprache auswählen / Choose Language\",\"Zurück\")))","v":"Zurück"}]
["-","-",null,null,null,null,null,null,null,null,{"$f":"IF(K1=\"English\",\"Please complete Name and City!\",IF(K1=\"Deutsch\",\"Bitte erfassen Sie Kundenname und Ort!\",IF(K1=\"Sprache auswählen / Choose Language\",\"Bitte erfassen Sie Kundenname und Ort!\")))","v":"Bitte erfassen Sie Kundenname und Ort!"}]
["-","-",null,null,null,null,null,null,null,null,{"$f":"IF(K1=\"English\",\"Data saved under name:\",IF(K1=\"Deutsch\",\"Die Daten wurden in der CSV-Datei mit dem Namen:\",IF(K1=\"Sprache auswählen / Choose Language\",\"Die Daten wurden in der CSV-Datei mit dem Namen:\")))","v":"Die Daten wurden in der CSV-Datei mit dem Namen:"}]
["-","-",null,null,null,null,null,null,null,null,{"$f":"IF(K1=\"English\",\"in the path:\",IF(K1=\"Deutsch\",\"unter dem Pfad:\",IF(K1=\"Sprache auswählen / Choose Language\",\"unter dem Pfad:\")))","v":"unter dem Pfad:"}]
[{"$f":"IF(K1=\"English\",\"Var-No.:\",IF(K1=\"Deutsch\",\"Kunden-Nummer:\",IF(K1=\"Sprache auswählen / Choose Language\",\"Kunden-Nummer:\")))","v":"Kunden-Nummer:"},null,null,null,{"$f":"IF(B6=\"\",0,3)","v":0},null,null,null,null,null,{"$f":"IF(K1=\"English\",\"This tool will be closed know!\",IF(K1=\"Deutsch\",\"gespeichert und abgelegt. Diese Datei wird nun geschlossen.\",IF(K1=\"Sprache auswählen / Choose Language\",\"gespeichert und abgelegt. Diese Datei wird nun geschlossen.\")))","v":"gespeichert und abgelegt. Diese Datei wird nun geschlossen."}]
[{"$f":"IF(K1=\"English\",\"Name:\",IF(K1=\"Deutsch\",\"Name:\",IF(K1=\"Sprache auswählen / Choose Language\",\"Name:\")))","v":"Name:"},null,null,null,{"$f":"IF(B7=\"\",0,1)","v":0},null,null,null,null,null,{"$f":"IF(K1=\"English\",\"Please check the CSV-File!\",IF(K1=\"Deutsch\",\"Bitte die Daten in der CSV-Datei prüfen!:\",IF(K1=\"Sprache auswählen / Choose Language\",\"Bitte die Daten in der CSV-Datei prüfen!\")))","v":"Bitte die Daten in der CSV-Datei prüfen!:"}]
[{"$f":"IF(K1=\"English\",\"Street:\",IF(K1=\"Deutsch\",\"Straße:\",IF(K1=\"Sprache auswählen / Choose Language\",\"Straße:\")))","v":"Straße:"},null,null,null,{"$f":"IF(B8=\"\",0,1)","v":0}]
[{"$f":"IF(K1=\"English\",\"Zip Code:\",IF(K1=\"Deutsch\",\"PLZ:\",IF(K1=\"Sprache auswählen / Choose Language\",\"PLZ:\")))","v":"PLZ:"},null,null,null,{"$f":"IF(B9=\"\",0,1)","v":0},null,null,null,null,null,50]
[{"$f":"IF(K1=\"English\",\"City:\",IF(K1=\"Deutsch\",\"Ort:\",IF(K1=\"Sprache auswählen / Choose Language\",\"Ort:\")))","v":"Ort:"},null,null,null,{"$f":"IF(B10=\"\",0,4)","v":0},null,null,null,null,null,{"$f":"COUNTIF(A26:A175,\"<>\")","v":0}]
[{"$f":"IF(K1=\"English\",\"Contact Person:\",IF(K1=\"Deutsch\",\"Ansprechpartner:\",IF(K1=\"Sprache auswählen / Choose Language\",\"Ansprechpartner:\")))","v":"Ansprechpartner:"},null,null,null,{"$f":"SUM(E7:E10)","v":0},null,null,null,null,null,{"$f":"K9-K10","v":50}]
["-","-"]
[{"$f":"IF(K1=\"English\",\"Business Deal No.:\",IF(K1=\"Deutsch\",\"Objekt-Nummer:\",IF(K1=\"Sprache auswählen / Choose Language\",\"Objekt-Numer:\")))","v":"Objekt-Nummer:"}]
["-","-",null,null,null,null,null,null,null,null,{"$f":"IF(K1=\"English\",\"Delete order\",IF(K1=\"Deutsch\",\"Bestellung löschen\",IF(K1=\"Sprache auswählen / Choose Language\",\"Bestellung löschen\")))","v":"Bestellung löschen"}]
[{"$f":"IF(K1=\"English\",\"Reference / Order No.:\",IF(K1=\"Deutsch\",\"Referenz / Bestell-Nummer:\",IF(K1=\"Sprache auswählen / Choose Language\",\"Referenz / Bestell-Nummer:\")))","v":"Referenz / Bestell-Nummer:"}]
["-","-",null,null,null,null,null,null,null,null,{"$f":"IF(K1=\"Deutsch\",\"Sind Sie sicher, alle Artikel in der Vorschau zur Bestellung zu löschen?\",IF(K1=\"English\",\"Are you shure to delete all Items in order overview?\",IF(K1=\"Sprache auswählen / Choose Language\",\"Sind Sie sicher, alle Artikel in der Vorschau zur Bestellung zu löschen?\")))","v":"Sind Sie sicher, alle Artikel in der Vorschau zur Bestellung zu löschen?"}]
[{"$f":"IF(K1=\"English\",\"Different Delivery Address\",IF(K1=\"Deutsch\",\"Abweichende Lieferadresse\",IF(K1=\"Sprache auswählen / Choose Language\",\"Abweichende Lieferadresse\")))","v":"Abweichende Lieferadresse"},"-"]
[{"$f":"IF(K1=\"English\",\"Name:\",IF(K1=\"Deutsch\",\"Name:\",IF(K1=\"Sprache auswählen / Choose Language\",\"Name:\")))","v":"Name:"}]
[{"$f":"IF(K1=\"English\",\"Street:\",IF(K1=\"Deutsch\",\"Straße:\",IF(K1=\"Sprache auswählen / Choose Language\",\"Straße:\")))","v":"Straße:"}]
[{"$f":"IF(K1=\"English\",\"Zip Code:\",IF(K1=\"Deutsch\",\"PLZ:\",IF(K1=\"Sprache auswählen / Choose Language\",\"PLZ:\")))","v":"PLZ:"}]
[{"$f":"IF(K1=\"English\",\"City:\",IF(K1=\"Deutsch\",\"Ort:\",IF(K1=\"Sprache auswählen / Choose Language\",\"Ort:\")))","v":"Ort:"}]
["-","-"]
[{"$f":"IF(K1=\"English\",\"Purchase order:\",IF(K1=\"Deutsch\",\"Bestellung:\",IF(K1=\"Sprache auswählen / Choose Language\",\"Bestellung:\")))","v":"Bestellung:"}]
[""]
[{"$f":"IF(K1=\"English\",\"Item\",IF(K1=\"Deutsch\",\"Artikel\",IF(K1=\"Sprache auswählen / Choose Language\",\"Artikel\")))","v":"Artikel"},{"$f":"IF(K1=\"English\",\"QTY\",IF(K1=\"Deutsch\",\"Menge\",IF(K1=\"Sprache auswählen / Choose Language\",\"Menge\")))","v":"Menge"},{"$f":"IF(K1=\"English\",\"Internal information\",IF(K1=\"Deutsch\",\"Interne Information\",IF(K1=\"Sprache auswählen / Choose Language\",\"Interne Information\")))","v":"Interne Information"}]

{"sheet":"Tabelle4","index":4,"n_rows":60,"n_cols":55,"rows_kept":60,"cut":false,"hidden":true,"merged":[[10,0,10,6],[11,0,11,5],[2,40,2,41],[3,0,5,0],[3,1,5,1],[2,2,2,3],[2,10,2,34],[2,38,2,39],[7,2,7,3],[18,0,18,5],[19,0,19,5],[20,0,20,5],[21,0,21,5],[22,0,22,5],[13,0,13,5],[14,0,14,5],[15,0,15,5],[16,0,16,5],[17,0,17,5],[28,0,28,5],[29,0,29,5],[30,0,30,5],[31,0,31,5],[32,0,32,5],[23,0,23,5],[24,0,24,5],[25,0,25,5],[26,0,26,5],[27,0,27,5],[38,0,38,5],[39,0,39,5],[40,0,40,5],[41,0,41,5],[42,0,42,5],[33,0,33,5],[34,0,34,5],[35,0,35,5],[36,0,36,5],[37,0,37,5],[48,0,48,5],[49,0,49,5],[50,0,50,5],[51,0,51,5],[52,0,52,5],[43,0,43,5],[44,0,44,5],[45,0,45,5],[46,0,46,5],[47,0,47,5],[58,0,58,5],[59,0,59,5],[60,0,60,5],[61,0,61,5],[62,0,62,5],[53,0,53,5],[54,0,54,5],[55,0,55,5],[56,0,56,5],[57,0,57,5],[68,0,68,5],[69,0,69,5],[70,0,70,5],[71,0,71,5],[72,0,72,5],[63,0,63,5],[64,0,64,5],[65,0,65,5],[66,0,66,5],[67,0,67,5],[78,0,78,5],[79,0,79,5],[80,0,80,5],[81,0,81,5],[82,0,82,5],[73,0,73,5],[74,0,74,5],[75,0,75,5],[76,0,76,5],[77,0,77,5],[88,0,88,5],[89,0,89,5],[90,0,90,5],[91,0,91,5],[92,0,92,5],[83,0,83,5],[84,0,84,5],[85,0,85,5],[86,0,86,5],[87,0,87,5],[98,0,98,5],[99,0,99,5],[100,0,100,5],[101,0,101,5],[102,0,102,5],[93,0,93,5],[94,0,94,5],[95,0,95,5],[96,0,96,5],[97,0,97,5],[108,0,108,5],[109,0,109,5],[110,0,110,5],[111,0,111,5],[112,0,112,5],[103,0,103,5],[104,0,104,5],[105,0,105,5],[106,0,106,5],[107,0,107,5],[118,0,118,5],[119,0,119,5],[120,0,120,5],[121,0,121,5],[122,0,122,5],[113,0,113,5],[114,0,114,5],[115,0,115,5],[116,0,116,5],[117,0,117,5],[128,0,128,5],[129,0,129,5],[130,0,130,5],[131,0,131,5],[132,0,132,5],[123,0,123,5],[124,0,124,5],[125,0,125,5],[126,0,126,5],[127,0,127,5],[138,0,138,5],[139,0,139,5],[140,0,140,5],[141,0,141,5],[142,0,142,5],[133,0,133,5],[134,0,134,5],[135,0,135,5],[136,0,136,5],[137,0,137,5],[148,0,148,5],[149,0,149,5],[150,0,150,5],[151,0,151,5],[152,0,152,5],[143,0,143,5],[144,0,144,5],[145,0,145,5],[146,0,146,5],[147,0,147,5],[158,0,158,5],[159,0,159,5],[160,0,160,5],[161,0,161,5],[162,0,162,5],[153,0,153,5],[154,0,154,5],[155,0,155,5],[156,0,156,5],[157,0,157,5]]}
["-",null,"-",null,"-",null,"-",null,null,null,null,null,null,null,null,null,null,null,null,null,null,null,null,null,null,null,null,null,null,null,null,null,null,null,null,null,null,{"$f":"TODAY()","v":"2021-10-26"}]
["-",null,"-",null,"-",null,"-"]
["-",null,null,null,{"$f":"IF(AQ6=\"Sprache auswählen / Choose Language\",\"Aussen Seite\",IF(AQ6=\"Deutsch\",\"Aussen Seite\",IF(AQ6=\"English\",\"Outside Dimension\")))","v":"Aussen Seite"},null,{"$f":"IF(AQ6=\"Sprache auswählen / Choose Language\",\"Innen \nSeite\",IF(AQ6=\"Deutsch\",\"Innen \nSeite\",IF(AQ6=\"English\",\"Inside Dimension\")))","v":"Innen \nSeite"},null,null,null,null,null,null,null,null,null,null,null,null,null,null,null,null,null,null,null,null,null,null,null,null,null,null,null,null,{"$f":"IF(AQ6=\"Sprache auswählen / Choose Language\",\"Menge\",IF(AQ6=\"Deutsch\",\"Menge\",IF(AQ6=\"English\",\"Quantity\")))","v":"Menge"},{"$f":"IF(AQ6=\"Sprache auswählen / Choose Language\",\"Bestellen\",IF(AQ6=\"Deutsch\",\"Bestellen\",IF(AQ6=\"English\",\"Order\")))","v":"Bestellen"},null,"FD/CO/AP2/DM/MP/MH",null,"HZ",null,"Sprache auswählen / Choose Language",null,null,null,"Menge",{"$f":"IF(AQ6=\"Sprache auswählen / Choose Language\",\"Rücksetzen\",IF(AQ6=\"Deutsch\",\"Rücksetzen\",IF(AQ6=\"English\",\"Reset\")))","v":"Rücksetzen"},"Profil"]
["-",null,"-",null,"-",null,"-",null,null,null,null,null,null,null,null,null,null,null,null,null,null,null,null,null,null,null,null,null,null,null,null,null,null,null,null,null,null,null,"Aussen","Innen","Aussen","Innen","Deutsch","FD","AP2","CO",1,null,"EU = Europrofile\nSO = Scandinavian Oval\nRS = Scandinavian Round\nSR = Swiss Round"]
[null,null,"-",null,"-",null,"-",null,null,null,null,null,null,null,null,null,null,null,null,null,null,null,null,null,null,null,null,null,null,null,null,null,null,null,null,null,null,"EU",20,20,25,10,"English","FH","FH","--",2,null,"EU = Europrofil\nSO = Scandinavian Oval\nRS = Scandinavian Round\nSR = Swiss Round"]
[null,null,"-",null,"-",null,"-",null,null,null,null,null,null,null,null,null,null,null,null,null,null,null,null,null,null,null,null,null,null,null,null,null,null,null,null,null,null,"SO",25,25,30,10,"Deutsch","MR","MR","MR",3]
["-",null,"-",null,"-",null,"-",null,null,null,null,null,null,null,null,null,null,null,null,null,null,null,null,null,null,null,null,null,null,null,null,null,null,null,null,null,null,"RS",30,30,35,null,"Sprache auswählen / Choose Language","MS","MS","MS",4]
["SV-Z5",null,null,null,null,null,null,null,null,null,null,null,null,null,null,null,null,null,null,null,null,null,null,null,null,null,null,null,null,null,null,null,null,null,null,null,null,"SR",35,35,40,null,null,"--","OK","--",5]
["-",null,null,null,null,null,"-",null,null,null,null,null,null,null,null,null,null,null,null,null,null,null,null,null,null,null,null,null,null,null,null,null,null,null,null,null,null,null,40,40,45,null,{"$f":"IF(AQ7=\"Deutsch\",\"Bitte Menge eingeben\",IF(AQ7=\"English\",\"Please enter quantity\",IF(AQ7=\"Sprache auswählen / Choose Language\",\"Bitte Menge eingeben\")))","v":"Bitte Menge eingeben"},"SKG","SKG","--",6]
["-",null,"-",null,"-",null,"-",null,null,null,null,null,null,null,null,null,null,null,null,null,null,null,null,null,null,null,null,null,null,null,null,null,null,null,null,null,null,"CO",45,45,50,null,{"$f":"IF(AQ6=\"Deutsch\",\"Sind Sie sicher, alle Zylinder in der Vorschau zur Bestellung zu löschen?\",IF(AQ6=\"English\",\"Are you shure to delete all Items in order overview?\",IF(AQ6=\"Sprache auswählen / Choose Language\",\"Sind Sie sicher, alle Zylinder in der Vorschau zur Bestellung zu löschen?\")))","v":"Sind Sie sicher, alle Zylinder in der Vorschau zur Bestellung zu löschen?"},"SW","SW","SW",7]
[{"$f":"IF(AQ6=\"Sprache auswählen / Choose Language\",\"Artikel-Vorschau für Bestellung\",IF(AQ6=\"Deutsch\",\"Artikel-Vorschau für Bestellung\",IF(AQ6=\"English\",\"Overview of items for order\")))","v":"Artikel-Vorschau für Bestellung"},null,null,null,null,null,null,null,null,null,null,null,null,null,null,null,null,null,null,null,null,null,null,null,null,null,null,null,null,null,null,null,null,null,null,null,null,"FD",50,50,55,null,null,"TS","TS","--",8]
[{"$f":"IF(AQ6=\"Sprache auswählen / Choose Language\",\"Artikel\",IF(AQ6=\"Deutsch\",\"Artikel\",IF(AQ6=\"English\",\"Item\")))","v":"Artikel"},null,null,null,null,null,{"$f":"IF(AQ6=\"Sprache auswählen / Choose Language\",\"Menge\",IF(AQ6=\"Deutsch\",\"Menge\",IF(AQ6=\"English\",\"Quantity\")))","v":"Menge"},null,null,null,null,null,null,null,null,null,null,null,null,null,null,null,null,null,null,null,null,null,null,null,null,null,null,null,null,null,null,"HZ",55,55,60,null,null,"WP","WP","WP",9]
["-",null,null,null,null,null,"-",null,null,null,null,null,null,null,null,null,null,null,null,null,null,null,null,null,null,null,null,null,null,null,null,null,null,null,null,null,null,null,60,60,65,null,null,"ZK","ZK","ZK",10]
[null,null,null,null,null,null,null,null,{"$f":"IF(AQ6=\"Sprache auswählen / Choose Language\",\"Sie können noch \" & AL36 &\" Positionen Ihrer Bestellung hinzufügen\",IF(AQ6=\"Deutsch\",\"Sie können noch \" & AL36 &\" Positionen Ihrer Bestellung hinzufügen\",IF(AQ6=\"English\",\"You can add \" & AL36 &\" more positions to your order\")))","v":"Sie können noch 50 Positionen Ihrer Bestellung hinzufügen"},null,null,null,null,null,null,null,null,null,null,null,null,null,null,null,null,null,null,null,null,null,null,null,null,null,null,null,null,"SV-Z5",65,65,70,null,null,"ZK.VDS","ZK.VDS","--",11]
[null,null,null,null,null,null,null,null,null,null,null,null,null,null,null,null,null,null,null,null,null,null,null,null,null,null,null,null,null,null,null,null,null,null,null,null,null,"SI-Z5",70,70,75,null,null,null,null,null,12]
[null,null,null,null,null,null,null,null,null,null,null,null,null,null,null,null,null,null,null,null,null,null,null,null,null,null,null,null,null,null,null,null,null,null,null,null,null,"MK-Z5",75,75,80,null,null,null,null,null,13]
[null,null,null,null,null,null,null,null,null,null,null,null,null,null,null,null,null,null,null,null,null,null,null,null,null,null,null,null,null,null,null,null,null,null,null,null,null,null,80,80,null,null,null,null,null,null,14]
[null,null,null,null,null,null,null,null,null,null,null,null,null,null,null,null,null,null,null,null,null,null,null,null,null,null,null,null,null,null,null,null,null,null,null,null,null,"SV-Z5 = Cylinder AX",85,85,null,null,null,null,null,null,15]
[null,null,null,null,null,null,null,null,null,null,null,null,null,null,null,null,null,null,null,null,null,null,null,null,null,null,null,null,null,null,null,null,null,null,null,null,null,"SV-Z5 = Zylinder AX",90,90,null,null,null,null,null,null,16]
[null,null,null,null,null,null,null,null,null,null,null,null,null,null,null,null,null,null,null,null,null,null,null,null,null,null,null,null,null,null,null,null,null,null,null,null,null,"CO = Comfort\nFD = Free rotation\nHZ = Half cylinder",95,95,null,null,null,null,null,null,17]
[null,null,null,null,null,null,null,null,null,null,null,null,null,null,null,null,null,null,null,null,null,null,null,null,null,null,null,null,null,null,null,null,null,null,null,null,null,"CO = Comfort\nFD = Freidrehend\nHZ = Halbzylinder",100,100,null,null,null,null,null,null,18]
[null,null,null,null,null,null,null,null,null,null,null,null,null,null,null,null,null,null,null,null,null,null,null,null,null,null,null,null,null,null,null,null,null,null,null,null,null,null,105,105,null,null,null,null,null,null,19]
[null,null,null,null,null,null,null,null,null,null,null,null,null,null,null,null,null,null,null,null,null,null,null,null,null,null,null,null,null,null,null,null,null,null,null,null,null,null,110,110,null,null,null,null,null,null,20]
[null,null,null,null,null,null,null,null,null,null,null,null,null,null,null,null,null,null,null,null,null,null,null,null,null,null,null,null,null,null,null,null,null,null,null,null,null,null,115,115]
[null,null,null,null,null,null,null,null,null,null,null,null,null,null,null,null,null,null,null,null,null,null,null,null,null,null,null,null,null,null,null,null,null,null,null,null,null,null,120,120]
[null,null,null,null,null,null,null,null,null,null,null,null,null,null,null,null,null,null,null,null,null,null,null,null,null,null,null,null,null,null,null,null,null,null,null,null,null,"A",125,125]
[null,null,null,null,null,null,null,null,null,null,null,null,null,null,null,null,null,null,null,null,null,null,null,null,null,null,null,null,null,null,null,null,null,null,null,null,null,"AM",130,130]
[null,null,null,null,null,null,null,null,null,null,null,null,null,null,null,null,null,null,null,null,null,null,null,null,null,null,null,null,null,null,null,null,null,null,null,null,null,"M",135,135]
[null,null,null,null,null,null,null,null,null,null,null,null,null,null,null,null,null,null,null,null,null,null,null,null,null,null,null,null,null,null,null,null,null,null,null,null,null,null,140,140]
[null,null,null,null,null,null,null,null,null,null,null,null,null,null,null,null,null,null,null,null,null,null,null,null,null,null,null,null,null,null,null,null,null,null,null,null,null,"EU = Europrofile\nSO = Scandinavian Oval\nRS = Round Scandinavian\nSR = Swiss Round",145,145]
[null,null,null,null,null,null,null,null,null,null,null,null,null,null,null,null,null,null,null,null,null,null,null,null,null,null,null,null,null,null,null,null,null,null,null,null,null,"EU = Europrofil\nSO = Scandinavian Oval\nRS = Round Scandinavian\nSR = Swiss Round",150,150]
[null,null,null,null,null,null,null,null,null,null,null,null,null,null,null,null,null,null,null,null,null,null,null,null,null,null,null,null,null,null,null,null,null,null,null,null,null,null,155,155]
[null,null,null,null,null,null,null,null,null,null,null,null,null,null,null,null,null,null,null,null,null,null,null,null,null,null,null,null,null,null,null,null,null,null,null,null,null,"Anzahl Zylinder",160,160]
[null,null,null,null,null,null,null,null,null,null,null,null,null,null,null,null,null,null,null,null,null,null,null,null,null,null,null,null,null,null,null,null,null,null,null,null,null,{"$f":"COUNTIF(G14:G163,\"<>\")","v":0},165,165]
[null,null,null,null,null,null,null,null,null,null,null,null,null,null,null,null,null,null,null,null,null,null,null,null,null,null,null,null,null,null,null,null,null,null,null,null,null,{"$f":"Tabelle2!K11","v":50},170,170]
[null,null,null,null,null,null,null,null,null,null,null,null,null,null,null,null,null,null,null,null,null,null,null,null,null,null,null,null,null,null,null,null,null,null,null,null,null,{"$f":"AL35-AL34","v":50},175,175]
[null,null,null,null,null,null,null,null,null,null,null,null,null,null,null,null,null,null,null,null,null,null,null,null,null,null,null,null,null,null,null,null,null,null,null,null,null,null,180,180]
[]
[]
[]
[null,null,null,null,null,null,null,null,null,null,null,null,null,null,null,null,null,null,null,null,null,null,null,null,null,null,null,null,null,null,null,null,null,null,null,null,null,"Zylinder zusammenfassung"]
[]
[null,null,null,null,null,null,null,null,null,null,null,null,null,null,null,null,null,null,null,null,null,null,null,null,null,null,null,null,null,null,null,null,null,null,null,null,null,"SV-Z5.",{"$f":"IF(B8=\"\",\"\",B8)","v":""},{"$f":"IF(C8=\"\",\"\",C8)","v":""},{"$f":"IF(E8=\"\",\"\",E8)","v":""},{"$f":"IF(G8=\"\",\"\",\"-\"&G8)","v":""},{"$f":"IF(I8=\"\",\"\",I8)","v":""},{"$f":"IF(K8=\"\",\"\",K8)","v":""},{"$f":"IF(L8=\"\",\"\",L8)","v":""},{"$f":"IF(N8=\"\",\"\",N8)","v":""},{"$f":"IF(P8=\"\",\"\",P8)","v":""},{"$f":"IF(R8=\"\",\"\",R8)","v":""},{"$f":"IF(T8=\"\",\"\",T8)","v":""},{"$f":"IF(V8=\"\",\"\",V8)","v":""},{"$f":"IF(X8=\"\",\"\",X8)","v":""},{"$f":"IF(Z8=\"\",\"\",Z8)","v":""},{"$f":"IF(AB8=\"\",\"\",AB8)","v":""},{"$f":"IF(AD8=\"\",\"\",AD8)","v":""},{"$f":"IF(AF8=\"\",\"\",AF8)","v":""}]
[null,null,null,null,null,null,null,null,null,null,null,null,null,null,null,null,null,null,null,null,null,null,null,null,null,null,null,null,null,null,null,null,null,null,null,null,null,{"$f":"\"SV-Z5\"&IF(AM43=\"\",\"\",AM43)&IF(AN43=\"\",\"\",AN43)&IF(AO43=\"\",\"\",AO43)&IF(AP43=\"\",\"\",AP43)&IF(AQ43=\"\",\"\",AQ43)&IF(AR43=\"\",\"\",AR43)&IF(AS43=\"\",\"\",AS43)&IF(AT43=\"\",\"\",AT43)&IF(AU43=\"\",\"\",AU43)&IF(AV43=\"\",\"\",AV43)&IF(AW43=\"\",\"\",AW43)&IF(AX43=\"\",\"\",AX43)&IF(AY43=\"\",\"\",AY43)&IF(AZ43=\"\",\"\",AZ43)&IF(BA43=\"\",\"\",BA43)&IF(BB43=\"\",\"\",BB43)&IF(BC43=\"\",\"\",BC43)&IF(BD43=\"\",\"\",BD43)&IF(BE43=\"\",\"\",BE43)","v":"SV-Z5"}]
[]
[null,null,null,null,null,null,null,null,null,null,null,null,null,null,null,null,null,null,null,null,null,null,null,null,null,null,null,null,null,null,null,null,null,null,null,null,null,"Lesetechnik"]
[null,null,null,null,null,null,null,null,null,null,null,null,null,null,null,null,null,null,null,null,null,null,null,null,null,null,null,null,null,null,null,null,null,null,null,null,null,"A = Active\nAM = Hybrid\nM = Passive"]
[null,null,null,null,null,null,null,null,null,null,null,null,null,null,null,null,null,null,null,null,null,null,null,null,null,null,null,null,null,null,null,null,null,null,null,null,null,"A = Aktiv\nAM = Hybrid"]
[]
[null,null,null,null,null,null,null,null,null,null,null,null,null,null,null,null,null,null,null,null,null,null,null,null,null,null,null,null,null,null,null,null,null,null,null,null,null,"SO","A30"]
[null,null,null,null,null,null,null,null,null,null,null,null,null,null,null,null,null,null,null,null,null,null,null,null,null,null,null,null,null,null,null,null,null,null,null,null,null,null,"A40"]
[null,null,null,null,null,null,null,null,null,null,null,null,null,null,null,null,null,null,null,null,null,null,null,null,null,null,null,null,null,null,null,null,null,null,null,null,null,null,"I30"]
[]
[null,null,null,null,null,null,null,null,null,null,null,null,null,null,null,null,null,null,null,null,null,null,null,null,null,null,null,null,null,null,null,null,null,null,null,null,null,"RS","A30"]
[null,null,null,null,null,null,null,null,null,null,null,null,null,null,null,null,null,null,null,null,null,null,null,null,null,null,null,null,null,null,null,null,null,null,null,null,null,null,"I30"]
[]
[null,null,null,null,null,null,null,null,null,null,null,null,null,null,null,null,null,null,null,null,null,null,null,null,null,null,null,null,null,null,null,null,null,null,null,null,null,"ZK =  Version mit Zutrittskontrolle, Zeitzonensteuerung und Protokollierung\nLN = Version mit integrierter Netzwerkplatine für die Vernetzung\n2LN =  Version mit integrierter Netzwerkplatine auf der Innen- und Aussenseite für die Vernetzung\nWP =Version für wetterfeste Version, Schutzart IP67,für den Einsatz in Außentüren und für Türen, die starkem Spritz- und Strahlwasser ausgesetzt sind\nAP = Version mit  Antipanik-Ausführung, mit rückgefedertem Mitnehmer, geeignet für den Einsatz in Antipanikschlössern, Panikfunktion R1 nach DIN 1825\nMR = Version für Multirast-Variante, nur für Halbzylinder\nMS = Version in  Messingausführung"]
[null,null,null,null,null,null,null,null,null,null,null,null,null,null,null,null,null,null,null,null,null,null,null,null,null,null,null,null,null,null,null,null,null,null,null,null,null,"ZK =  Version with access control, time zone control and event loggin\nLN = Version with integrated network board for networking\n2LN = Version with integrated network board on both sides for networking\nWP = Version for weatherproof, protection rating IP67. For use in exterior doors and doors which are exposed to inside splashing and water spray.\nAP = Anti-panic version, with spring back cam; suitable for use in anti-panic locks, panic function R1 as per DIN 18252\nMR = Version for multi-point. Only for half cylinder available.\nMS = Version brass design"]
[]
[null,null,null,null,null,null,null,null,null,null,null,null,null,null,null,null,null,null,null,null,null,null,null,null,null,null,null,null,null,null,null,null,null,null,null,null,null,"Die Artikelvorschau wurde noch nicht in die Bestellung übernommen!\nSind Sie sicher, dass Sie die Artikelvorschau löschen wollen?"]

{"sheet":"Tabelle5","index":5,"n_rows":7,"n_cols":14,"rows_kept":7,"cut":false,"hidden":false,"merged":[[0,2,1,6]]}
[null,null,{"$f":"IF(N5=\"\",\"Zylinder Bestellhilfe / Cylinder ordering tool\",IF(N5=\"Deutsch\",\"Zylinder Bestellhilfe\",IF(N5=\"English\",\"Cylinder ordering tool\")))","v":"Zylinder Bestellhilfe"}]
[null,null,null,null,null,null,null,null,null,null,null,null,null,"Deutsch"]
[null,null,null,null,null,null,null,null,null,null,null,null,null,"English"]
[null,null,null,null,{"$f":"IF(N5=\"\",\"Sprache wählen / Choose Language\",\"\")","v":""}]
[null,null,null,null,null,null,null,null,null,null,null,null,null,"Deutsch"]
[]
[null,null,null,null,null,null,null,null,null,null,null,null,null,{"$f":"Tabelle2!K11","v":50}]